bitfinex-derivatives/quotes_ETHF0:USTF0_20240915
["timestamp","ask_amount","ask_price","bid_price","bid_amount"]
[1726405352366,0.8111,2412.6,2412.2,4.9451]
[1726405352577,0.8111,2412.6,2412.2,6.51300752]
[1726405352862,0.8111,2412.6,2412.2,5.43089052]
[1726405359066,0.8111,2412.6,2412.2,8.63869052]
[1726405362364,0.8111,2412.6,2412.2,5.43089052]
[1726405362569,0.8111,2412.6,2412.3,3.2078]
[1726405363367,0.8111,2412.6,2412.2,0.7995]
[1726405363662,0.8111,2412.6,2412.3,3.2078]
[1726405365776,1.22549,2412.6,2412.3,3.2078]
[1726405365968,0.8111,2412.6,2412.3,3.2078]
[1726405374079,0.41437,2412.7,2412.3,3.2078]
[1726405375484,0.41437,2412.7,2412.3,4.289917]
[1726405375889,0.41437,2412.7,2412.3,3.2078]
[1726405379389,0.41437,2412.7,2412.3,4.289917]
[1726405380595,0.41437,2412.7,2412.4,1.082117]
[1726405380989,0.41437,2412.7,2412.5,0.3849]
[1726405381385,1.20466,2412.8,2412.5,0.3849]
[1726405381591,0.41436,2412.8,2412.6,0.8084]
[1726405384699,3.5363271,2412.9,2412.6,0.8084]
[1726405384896,3.5363271,2412.9,2412.6,1.890517]
[1726405384897,0.3285271,2412.9,2412.6,1.890517]
[1726405385093,1.59252,2413.0,2412.6,1.890517]
[1726405385705,0.41435,2412.8,2412.5,1.467017]
[1726405385902,0.41435,2412.8,2412.5,0.3849]
[1726405386094,3.2078,2412.9,2412.5,0.3849]
[1726405386095,0.80047,2412.7,2412.5,0.3849]
[1726405386804,0.3828,2412.6,2412.5,0.3849]
[1726405387693,0.79718,2412.6,2412.5,0.3849]
[1726405387899,1.19508,2412.6,2412.3,1.082117]
[1726405388106,4.40288,2412.6,2412.3,1.468217]
[1726405388405,4.40289,2412.6,2412.3,1.082117]
[1726405390106,4.40289,2412.6,2412.4,1.082117]
[1726405390402,1.19509,2412.6,2412.4,1.082117]
[1726405393003,4.40289,2412.6,2412.4,1.082117]
[1726405393607,1.19509,2412.6,2412.4,1.082117]
[1726405395803,1.19509,2412.6,2412.5,1.082117]
[1726405398703,1.19509,2412.6,2412.3,1.62293265]
[1726405398905,1.19509,2412.6,2412.4,4.5513461]
[1726405399109,1.19509,2412.6,2412.3,1.62293265]
[1726405399310,1.19509,2412.6,2412.4,4.55139905]
[1726405399510,1.19509,2412.6,2412.4,1.62293265]
[1726405399913,1.19509,2412.6,2412.5,1.08273029]
[1726405400707,1.19509,2412.6,2412.5,1.73064923]
[1726405400908,1.19509,2412.6,2412.5,1.08272415]
[1726405401213,1.19509,2412.6,2412.4,0.3737]
[1726405401417,1.19509,2412.6,2412.4,1.99663265]
[1726405401808,1.19509,2412.6,2412.5,1.08273298]
[1726405402111,1.19509,2412.6,2412.5,1.08274109]
[1726405402416,1.19509,2412.6,2412.4,1.99663265]
[1726405402713,1.19509,2412.6,2412.5,1.08272114]
[1726405402915,1.19509,2412.6,2412.4,1.99663265]
[1726405403412,1.19509,2412.6,2412.5,1.08274399]
[1726405403610,1.19509,2412.6,2412.5,1.08274543]
[1726405403817,1.19509,2412.6,2412.5,1.08274217]
[1726405404011,1.19509,2412.6,2412.5,1.0827158]
[1726405404314,1.19509,2412.6,2412.4,0.786]
[1726405404505,1.19509,2412.6,2412.5,1.08273649]
[1726405405109,0.7807,2412.6,2412.5,1.08273649]
[1726405405312,0.3828,2412.6,2412.5,2.41983226]
[1726405405515,0.3828,2412.6,2412.5,2.92835234]
[1726405405706,0.3828,2412.6,2412.5,2.23903332]
[1726405405904,0.3828,2412.6,2412.5,1.77171671]
[1726405406916,0.3828,2412.6,2412.5,1.08261496]
[1726405407111,0.3828,2412.6,2412.5,1.77176963]
[1726405407506,0.3828,2412.6,2412.5,1.08258072]
[1726405407811,0.3828,2412.6,2412.5,1.77175391]
[1726405408016,0.3828,2412.6,2412.5,1.77176902]
[1726405408415,0.3828,2412.6,2412.5,1.08260328]
[1726405408610,0.3828,2412.6,2412.5,1.77172255]
[1726405408815,0.3828,2412.6,2412.5,1.08255111]
[1726405409219,0.3828,2412.6,2412.5,1.08261468]
[1726405409407,0.3828,2412.6,2412.5,1.77174102]
[1726405409609,0.3828,2412.6,2412.5,2.85431939]
[1726405409815,0.3828,2412.6,2412.5,1.77176686]
[1726405410015,0.3828,2412.6,2412.5,1.08255112]
[1726405410220,0.3828,2412.6,2412.5,2.85424555]
[1726405410416,0.3828,2412.6,2412.5,1.08255677]
[1726405410627,0.3828,2412.6,2412.5,1.77173811]
[1726405410921,0.3828,2412.6,2412.5,1.77170907]
[1726405411422,0.3828,2412.6,2412.5,1.77171612]
[1726405411814,0.3828,2412.6,2412.5,1.77169371]
[1726405412018,0.3828,2412.6,2412.5,1.77170884]
[1726405412217,0.3828,2412.6,2412.5,1.77173609]
[1726405412416,0.3828,2412.6,2412.5,2.85430193]
[1726405412617,0.3828,2412.6,2412.5,2.8543087]
[1726405412820,0.3828,2412.6,2412.5,2.8543203]
[1726405413521,0.3828,2412.6,2412.5,1.77174769]
[1726405413728,0.3828,2412.6,2412.5,1.77172629]
[1726405413913,0.3828,2412.6,2412.5,2.85429733]
[1726405414114,0.3828,2412.6,2412.5,1.77175521]
[1726405414315,0.3828,2412.6,2412.5,1.08260409]
[1726405414518,0.3828,2412.6,2412.5,1.77177265]
[1726405414916,0.3828,2412.6,2412.5,1.082599]
[1726405415112,0.3828,2412.6,2412.5,1.77177685]
[1726405415835,0.3828,2412.6,2412.5,2.85436675]
[1726405416028,0.3828,2412.6,2412.5,1.0825899]
[1726405418332,0.79718,2412.6,2412.5,1.0825899]
[1726405420124,0.79718,2412.6,2412.4,1.1755]
[1726405420125,0.79718,2412.6,2412.4,2.2580899]
[1726405421827,0.79718,2412.6,2412.4,1.8685899]
[1726405423235,0.79718,2412.6,2412.4,1.4562899]
[1726405428237,0.4144,2412.5,2412.4,1.4562899]
[1726405428628,0.79719,2412.6,2412.4,1.4562899]
[1726405431439,0.79719,2412.6,2412.5,1.0825899]
[1726405432035,0.79719,2412.6,2412.4,1.4562899]
[1726405432237,0.79719,2412.6,2412.5,1.0825899]
[1726405432729,0.79719,2412.6,2412.4,1.4562899]
[1726405433230,0.4144,2412.5,2412.4,1.4562899]
[1726405433426,0.4144,2412.5,2412.4,2.14639943]
[1726405433629,3.6222,2412.5,2412.4,1.08321997]
[1726405433835,3.6222,2412.5,2412.2,0.53824867]
[1726405433836,7.3526,2412.5,2412.2,0.53824867]
[1726405434037,0.41445,2412.2,2412.1,0.3949]
[1726405435134,0.79664,2412.3,2412.1,1.04295904]
[1726405435340,0.79664,2412.3,2412.1,0.3949]
[1726405435530,0.41444,2412.3,2412.1,0.3949]
[1726405439534,0.74565137,2412.3,2412.1,0.3949]
[1726405442242,0.41444,2412.3,2412.1,0.3949]
[1726405442434,1.08600795,2412.4,2412.1,0.3949]
[1726405443439,0.41444,2412.3,2412.1,0.3949]
[1726405450846,0.74513795,2412.4,2412.1,0.3949]
[1726405451444,0.41444,2412.3,2412.1,0.3949]
[1726405453857,0.41444,2412.3,2412.1,2.01783265]
[1726405454342,0.41445,2412.2,2412.1,2.01783265]
[1726405454553,0.41445,2412.2,2412.0,2.42283265]
[1726405454747,0.41445,2412.2,2412.0,0.7999]
[1726405455347,3.62224,2412.3,2412.0,0.7999]
[1726405455656,1.61265,2412.2,2412.0,0.7999]
[1726405455953,1.1982,2412.2,2412.0,0.7999]
[1726405458151,1.1982,2412.2,2412.0,0.3996]
[1726405460553,1.52944026,2412.2,2412.0,0.3996]
[1726405464152,1.52944026,2412.2,2412.0,2.02253265]
[1726405464356,1.52944026,2412.2,2412.0,0.3996]
[1726405465257,1.1982,2412.2,2412.0,2.02253265]
[1726405465458,1.1982,2412.2,2412.1,1.7836475]
[1726405465656,1.1982,2412.2,2412.1,2.43167992]
[1726405466057,0.41443,2412.4,2412.1,2.9406187]
[1726405466354,0.41443,2412.3,2412.1,2.00233265]
[1726405467455,0.41443,2412.3,2412.1,0.3794]
[1726405468558,0.79813,2412.3,2412.1,2.00233265]
[1726405468760,1.18613,2412.3,2412.1,0.3794]
[1726405469462,1.18613,2412.3,2412.1,2.00233265]
[1726405469666,0.194,2412.7,2412.2,12.69994597]
[1726405469851,0.7923,2412.7,2412.4,4.83073265]
[1726405470051,0.7923,2412.7,2412.5,2.43129808]
[1726405470052,1.58597,2412.7,2412.5,2.43129808]
[1726405470263,1.58597,2412.7,2412.4,2.01333265]
[1726405470460,1.58597,2412.7,2412.5,2.43106358]
[1726405470660,1.58597,2412.7,2412.4,2.01333265]
[1726405470962,1.1716,2412.7,2412.4,2.01333265]
[1726405471258,1.1716,2412.7,2412.5,2.43116432]
[1726405471464,1.1716,2412.7,2412.4,2.01333265]
[1726405471656,1.1716,2412.7,2412.5,2.43113374]
[1726405471860,1.1716,2412.7,2412.4,2.01333265]
[1726405472050,1.1716,2412.7,2412.5,2.43128627]
[1726405472248,1.1716,2412.7,2412.4,2.01333265]
[1726405472459,1.1716,2412.7,2412.5,2.43113821]
[1726405472655,3.53113084,2412.9,2412.4,2.01333265]
[1726405472963,3.53113084,2412.9,2412.6,1.62293265]
[1726405473155,3.53113084,2412.9,2412.7,2.15802117]
[1726405473355,3.53113084,2412.9,2412.7,0.7697]
[1726405473552,3.2078,2412.9,2412.7,0.7697]
[1726405480262,1.1999,2413.0,2412.7,0.7697]
[1726405480565,1.1999,2413.0,2412.8,0.3749]
[1726405480765,1.61421,2413.0,2412.8,0.3749]
[1726405481754,0.194,2413.3,2412.8,0.3749]
[1726405481963,1.1683,2413.3,2412.8,0.3749]
[1726405482165,1.58258,2413.3,2412.8,0.3749]
[1726405482467,1.1683,2413.3,2413.0,3.2078]
[1726405482673,0.194,2413.6,2413.1,2.17408656]
[1726405482878,0.55004444,2413.8,2413.3,3.62206]
[1726405482879,0.4004,2413.7,2413.3,3.62206]
[1726405483167,0.194,2414.1,2413.6,3.2078]
[1726405483384,1.1931,2414.2,2413.9,3.2078]
[1726405483565,1.1931,2414.2,2413.7,1.1988]
[1726405483566,1.1931,2414.2,2413.7,5.91127015]
[1726405483758,1.1931,2414.2,2414.0,4.42306576]
[1726405484161,0.4004,2414.2,2413.8,4.71247015]
[1726405484358,0.7803,2414.5,2413.9,3.2078]
[1726405484564,1.1569,2414.5,2413.9,3.2078]
[1726405484771,1.1569,2414.5,2414.0,4.51070395]
[1726405484970,1.57096,2414.5,2414.0,4.51070395]
[1726405485170,1.1569,2414.5,2414.0,4.51070395]
[1726405485674,1.1569,2414.5,2414.2,3.2078]
[1726405485675,0.3766,2414.5,2414.2,3.2078]
[1726405485873,0.3766,2414.5,2414.3,0.375]
[1726405487570,0.3766,2414.5,2414.3,0.7496]
[1726405489460,0.41403,2414.7,2414.3,0.7496]
[1726405489665,4.02363,2414.7,2414.3,1.1263]
[1726405489864,4.02363,2414.7,2414.3,0.7496]
[1726405490079,0.41405,2414.6,2414.2,3.2078]
[1726405490263,0.3907,2414.5,2414.2,3.2078]
[1726405490868,0.80476,2414.5,2414.2,3.2078]
[1726405491672,0.3907,2414.5,2414.2,3.2078]
[1726405492272,3.6096,2414.7,2414.2,3.2078]
[1726405492468,3.6096,2414.7,2414.3,4.48781214]
[1726405492779,0.41404,2414.6,2414.3,4.48781214]
[1726405493274,3.6096,2414.7,2414.3,4.48781214]
[1726405493677,3.6096,2414.7,2414.4,1.1569]
[1726405494280,0.3857,2414.9,2414.5,4.43251542]
[1726405494576,0.3857,2414.9,2414.5,7.64031542]
[1726405494777,4.8606,2415.0,2414.5,7.64031542]
[1726405494978,0.7726,2415.0,2414.5,7.64031542]
[1726405495182,0.097,2415.1,2414.8,3.2078]
[1726405495384,0.43253142,2418.3,2415.9,3.2078]
[1726405495589,3.2078,2417.9,2417.1,3.2078]
[1726405495889,3.2078,2417.3,2416.4,3.2078]
[1726405496190,0.41358,2417.3,2417.0,3.2078]
[1726405496486,0.41358,2417.3,2415.4,19.07375179]
[1726405496487,3.2078,2417.1,2416.5,4.58638602]
[1726405496670,0.7702,2417.2,2415.8,3.2078]
[1726405496671,3.2078,2416.8,2415.8,3.2078]
[1726405496872,1.1724,2417.2,2415.3,0.3765]
[1726405496873,3.2078,2416.5,2415.6,3.2078]
[1726405497079,1.1668,2416.4,2415.6,3.2078]
[1726405497371,1.1668,2416.4,2415.3,0.3765]
[1726405497372,1.1668,2416.4,2415.9,3.2078]
[1726405497578,1.1668,2416.4,2415.2,0.59319783]
[1726405497579,1.1668,2416.4,2415.6,3.2078]
[1726405497778,3.2078,2416.2,2415.6,3.2078]
[1726405498082,3.2078,2416.2,2415.3,4.47103242]
[1726405498083,3.62158,2416.2,2415.3,4.47103242]
[1726405498284,3.2078,2416.3,2415.7,3.2078]
[1726405498586,0.41377,2416.2,2415.4,3.2078]
[1726405498770,0.41377,2416.2,2415.5,3.2078]
[1726405499175,0.41378,2416.1,2415.5,3.2078]
[1726405500483,3.2078,2416.3,2415.5,3.2078]
[1726405500484,0.41381,2416.0,2415.5,3.2078]
[1726405500673,0.7955,2415.9,2415.5,3.2078]
[1726405500879,1.191,2415.9,2415.5,3.2078]
[1726405502077,0.8019,2415.9,2415.8,3.2078]
[1726405502283,3.2078,2416.6,2415.8,3.2078]
[1726405502284,0.208,2416.8,2415.8,3.2078]
[1726405502482,0.4064,2416.7,2415.9,0.3861]
[1726405502782,0.41375,2416.3,2415.8,7.59924118]
[1726405503091,0.41374,2416.4,2415.8,7.59924118]
[1726405503279,0.3782,2416.2,2416.1,3.2078]
[1726405506187,0.79196,2416.2,2416.1,3.2078]
[1726405506391,4.93116,2416.2,2416.1,3.2078]
[1726405507390,4.5174,2416.2,2416.1,3.2078]
[1726405508485,4.93116,2416.2,2416.1,3.2078]
[1726405509883,0.79196,2416.2,2416.1,3.2078]
[1726405510192,0.3782,2416.2,2416.1,3.2078]
[1726405510693,4.24182,2417.2,2416.1,7.347]
[1726405510992,3.2078,2416.6,2416.0,3.2078]
[1726405511285,0.41383,2415.9,2415.6,3.2078]
[1726405511492,0.4128,2415.8,2415.6,3.2078]
[1726405511789,0.41385,2415.7,2415.6,3.2078]
[1726405511982,0.80765,2415.7,2415.6,3.2078]
[1726405512187,4.94765,2415.7,2415.6,3.2078]
[1726405512583,4.5338,2415.7,2415.6,3.2078]
[1726405512788,4.94765,2415.7,2415.6,3.2078]
[1726405513085,0.3938,2415.7,2415.6,3.2078]
[1726405513397,4.5338,2415.7,2415.6,3.2078]
[1726405513685,4.94765,2415.7,2415.6,3.2078]
[1726405514190,0.3938,2415.7,2415.6,3.2078]
[1726405514386,0.4128,2415.8,2415.6,3.2078]
[1726405514794,0.4128,2415.8,2415.7,0.415]
[1726405515991,4.96584,2415.8,2415.6,3.2078]
[1726405516184,0.374,2415.7,2415.6,3.2078]
[1726405516579,0.4128,2415.8,2415.6,3.2078]
[1726405517490,0.4128,2415.8,2415.7,0.415]
[1726405517990,0.4128,2415.8,2415.6,3.2078]
[1726405517991,4.552,2415.8,2415.6,3.2078]
[1726405518192,0.82663,2415.8,2415.6,3.2078]
[1726405518385,0.82663,2415.8,2415.3,0.39]
[1726405518386,0.4139,2415.4,2415.3,0.39]
[1726405518593,8.151,2415.7,2414.9,3.2078]
[1726405518792,0.4057,2415.3,2414.9,3.2078]
[1726405519185,0.4057,2415.3,2415.2,3.2078]
[1726405519793,1.21786,2415.7,2415.2,3.2078]
[1726405519997,0.4057,2415.6,2415.4,3.2078]
[1726405520188,0.41388,2415.5,2415.4,3.2078]
[1726405520486,0.41388,2415.5,2415.1,3.2078]
[1726405520487,0.4139,2415.4,2415.1,3.2078]
[1726405520901,0.4057,2415.6,2415.1,3.2078]
[1726405521092,0.4057,2415.6,2415.2,1.1933]
[1726405521393,0.804,2415.7,2415.2,1.1933]
[1726405521394,0.41386,2415.7,2415.2,1.1933]
[1726405521596,3.2078,2415.9,2415.5,3.2078]
[1726405521597,0.3814,2415.8,2415.5,3.2078]
[1726405521800,3.2078,2415.9,2415.5,3.2078]
[1726405521996,3.2078,2415.9,2415.6,0.3908]
[1726405522692,0.3814,2416.1,2415.8,3.2078]
[1726405522886,10.6013386,2416.8,2415.8,3.62163]
[1726405522887,0.208,2416.8,2415.8,3.62163]
[1726405523086,0.3814,2416.6,2416.3,3.2078]
[1726405523287,0.79511,2416.6,2416.3,3.2078]
[1726405523493,0.3814,2416.6,2416.3,3.2078]
[1726405523892,4.5198,2416.6,2415.9,3.2078]
[1726405524101,0.3814,2416.6,2415.9,3.2078]
[1726405524396,0.41372,2416.5,2415.9,3.2078]
[1726405524593,0.3814,2416.6,2415.9,3.2078]
[1726405524804,0.3771,2416.4,2415.9,3.2078]
[1726405525005,0.41377,2416.2,2415.9,3.2078]
[1726405525295,0.41381,2416.0,2415.7,4.13]
[1726405525496,0.41381,2416.0,2415.6,3.5986]
[1726405525497,0.80338,2416.1,2415.6,3.5986]
[1726405525694,0.3896,2416.1,2415.9,3.2078]
[1726405525891,0.3896,2416.1,2416.0,0.388]
[1726405526090,4.5288,2416.1,2416.0,0.388]
[1726405527093,0.3896,2416.1,2416.0,0.388]
[1726405527289,0.41374,2416.4,2416.0,0.388]
[1726405527486,0.41366,2416.9,2416.3,3.2078]
[1726405527694,0.3963,2417.1,2416.6,3.2078]
[1726405527902,0.80991,2417.1,2416.7,0.39]
[1726405528204,0.3963,2417.1,2416.7,0.39]
[1726405528419,0.41363,2417.0,2416.7,0.39]
[1726405528700,0.41363,2417.0,2416.6,3.2078]
[1726405528701,0.41368,2416.7,2416.6,3.2078]
[1726405528889,0.41368,2416.7,2416.0,4.13]
[1726405528890,0.41374,2416.4,2416.1,0.39]
[1726405529090,0.41375,2416.3,2416.1,0.39]
[1726405529492,4.55216,2416.2,2416.1,0.39]
[1726405529692,0.3963,2416.6,2415.7,3.2078]
[1726405529693,4.1384,2416.5,2415.7,3.2078]
[1726405529898,6.3963,2416.6,2415.7,3.2078]
[1726405529899,0.3963,2416.6,2415.7,3.2078]
[1726405530201,0.4138,2416.1,2415.7,3.2078]
[1726405530503,0.4033,2416.4,2415.8,0.3782]
[1726405530504,0.41377,2416.2,2415.8,0.3782]
[1726405530896,0.41378,2416.1,2415.8,0.3782]
[1726405531101,0.41381,2416.0,2415.8,0.3782]
[1726405531496,0.41376,2416.3,2415.8,0.3782]
[1726405531694,0.41376,2416.3,2416.0,3.2078]
[1726405532596,0.4138,2416.1,2415.8,0.3782]
[1726405532797,0.4138,2416.1,2415.6,3.2078]
[1726405532798,0.41385,2415.7,2415.6,3.2078]
[1726405533309,0.41385,2415.7,2415.1,4.13]
[1726405533310,10.14,2415.7,2415.1,4.13]
[1726405533602,0.41392,2415.3,2415.2,0.4063]
[1726405533806,0.41392,2415.3,2415.0,3.2078]
[1726405535201,0.41394,2415.2,2415.0,3.2078]
[1726405535399,0.41393,2415.3,2415.0,3.2078]
[1726405536001,0.41391,2415.4,2415.0,3.2078]
[1726405536401,0.41392,2415.3,2415.0,3.2078]
[1726405537500,3.6065,2415.6,2415.0,3.2078]
[1726405537501,0.41391,2415.4,2415.0,3.2078]
[1726405538208,0.41385,2415.7,2415.3,3.2078]
[1726405538501,0.41385,2415.7,2415.4,0.4054]
[1726405538707,0.41384,2415.8,2415.4,0.4054]
[1726405539093,3.2078,2415.9,2415.4,0.4054]
[1726405539303,3.2078,2415.9,2415.4,0.7897]
[1726405539504,0.392,2416.0,2415.6,3.2078]
[1726405539701,0.4008,2416.5,2415.9,3.2078]
[1726405539702,0.7775,2416.5,2415.9,3.2078]
[1726405539907,0.7775,2416.5,2415.6,3.2078]
[1726405540323,0.4138,2416.0,2415.6,3.2078]
[1726405540607,0.41382,2415.9,2415.6,3.2078]
[1726405540995,0.41384,2415.8,2415.6,3.2078]
[1726405543904,0.41385,2415.7,2415.6,3.2078]
[1726405544308,0.41385,2415.7,2415.4,0.7897]
[1726405544699,3.2078,2416.0,2415.4,0.7897]
[1726405544700,0.41385,2415.8,2415.4,0.7897]
[1726405544900,1.20942,2415.9,2415.4,0.7897]
[1726405545315,0.41383,2415.8,2415.4,0.7897]
[1726405546517,0.41385,2415.7,2415.4,0.7897]
[1726405547509,0.41384,2415.8,2415.4,0.7897]
[1726405548811,1.20943,2415.9,2415.4,0.7897]
[1726405549009,3.2078,2416.4,2415.7,3.2078]
[1726405549208,3.9811,2416.4,2415.8,0.4017]
[1726405549812,0.41379,2416.1,2415.8,0.4017]
[1726405550009,0.4138,2416.0,2415.8,0.4017]
[1726405550521,0.41382,2415.9,2415.8,0.4017]
[1726405550815,0.3892,2415.9,2415.8,0.4017]
[1726405551207,0.80302,2415.9,2415.8,0.4017]
[1726405551413,0.3892,2415.9,2415.8,0.4017]
[1726405551720,0.80302,2415.9,2415.8,0.4017]
[1726405552119,4.94222,2415.9,2415.7,3.2078]
[1726405552418,0.41386,2415.7,2415.5,0.3792]
[1726405552620,4.1392,2415.8,2415.5,0.3792]
[1726405552621,0.3756,2415.8,2415.5,0.3792]
[1726405552922,0.41387,2415.6,2415.5,0.3792]
[1726405553612,0.3756,2415.8,2415.5,0.3792]
[1726405553919,0.41387,2415.6,2415.5,0.3792]
[1726405556219,0.41386,2415.7,2415.5,0.3792]
[1726405556518,0.41387,2415.6,2415.5,0.3792]
[1726405556708,0.41386,2415.7,2415.5,0.3792]
[1726405556908,0.41387,2415.6,2415.5,0.3792]
[1726405559022,0.41386,2415.7,2415.5,0.3792]
[1726405559619,0.3892,2415.9,2415.5,0.3792]
[1726405560013,0.41387,2415.6,2415.5,0.3792]
[1726405560412,0.41387,2415.6,2415.1,3.9957]
[1726405560413,0.41388,2415.5,2415.1,3.9957]
[1726405560616,0.4141,2415.4,2415.2,0.4128]
[1726405560826,0.41392,2415.3,2415.1,3.2078]
[1726405561016,0.41394,2415.2,2415.1,3.2078]
[1726405561322,0.41395,2415.2,2414.8,0.7893]
[1726405561516,0.4141,2415.4,2414.8,0.7893]
[1726405561517,0.41395,2415.1,2414.8,0.7893]
[1726405561813,0.41394,2415.2,2414.8,0.7893]
[1726405562216,0.4141,2415.4,2414.8,0.4128]
[1726405562217,0.41399,2414.9,2414.8,0.4128]
[1726405562408,0.79686,2415.1,2414.8,0.4128]
[1726405563009,0.41394,2415.2,2414.8,0.4128]
[1726405563215,0.797,2415.4,2414.8,0.4128]
[1726405563415,0.41395,2415.2,2414.9,3.2078]
[1726405563821,0.41396,2415.1,2414.9,3.2078]
[1726405564420,0.41394,2415.2,2414.9,3.2078]
[1726405564621,0.41395,2415.1,2414.9,3.2078]
[1726405564816,0.41395,2415.1,2414.8,0.4128]
[1726405565022,0.41397,2415.0,2414.8,0.4128]
[1726405565215,0.3901,2414.9,2414.8,0.4128]
[1726405569328,0.41394,2415.2,2414.8,0.4128]
[1726405569532,0.41396,2415.1,2414.8,0.4128]
[1726405570827,0.794,2415.3,2414.8,0.4128]
[1726405570828,0.41397,2415.0,2414.8,0.4128]
[1726405572123,0.41399,2414.9,2414.8,0.4128]
[1726405573436,0.794,2415.3,2414.6,0.3882]
[1726405573730,0.3759,2414.8,2414.6,0.3882]
[1726405578235,0.41391,2415.4,2414.6,4.94383]
[1726405578435,0.41394,2415.2,2415.0,3.2078]
[1726405579134,0.41394,2415.2,2415.1,0.3963]
[1726405579341,0.41393,2415.3,2415.1,0.3963]
[1726405579727,0.7707,2415.5,2415.1,0.3963]
[1726405579935,0.3845,2415.5,2415.3,3.2078]
[1726405580438,0.79839,2415.5,2415.3,3.2078]
[1726405580638,0.4139,2415.4,2415.3,3.2078]
[1726405581225,0.8145,2415.4,2415.3,3.2078]
[1726405581429,0.4006,2415.4,2415.3,3.2078]
[1726405581629,0.79839,2415.5,2415.3,3.2078]
[1726405581830,0.3845,2415.5,2415.3,3.2078]
[1726405582032,0.74293245,2415.6,2415.3,3.2078]
[1726405582234,0.74293245,2415.6,2415.4,0.4007]
[1726405582433,0.41388,2415.5,2415.4,0.4007]
[1726405582836,0.32906245,2415.6,2415.4,0.4007]
[1726405583041,0.41388,2415.5,2415.4,0.4007]
[1726405583628,0.41388,2415.6,2415.4,0.4007]
[1726405586030,0.71844201,2415.7,2415.3,3.2078]
[1726405587442,0.4139,2415.4,2415.3,3.2078]
[1726405588240,4.5539,2415.4,2415.3,3.2078]
[1726405589140,0.4139,2415.4,2415.3,3.2078]
[1726405589933,0.41389,2415.5,2415.3,3.2078]
[1726405590537,0.4139,2415.4,2415.3,3.2078]
[1726405590733,0.8185,2415.4,2415.3,3.2078]
[1726405590940,4.9585,2415.4,2415.3,3.2078]
[1726405593038,0.8185,2415.4,2415.3,3.2078]
[1726405593644,1.15416224,2415.4,2415.3,3.2078]
[1726405595844,0.74956224,2415.4,2415.3,3.2078]
[1726405599737,0.33566224,2415.4,2415.3,3.2078]
[1726405599942,0.3832,2415.6,2415.3,3.2078]
[1726405600140,0.41388,2415.5,2415.4,0.4017]
[1726405600444,0.41388,2415.6,2415.4,0.7927]
[1726405604648,0.41388,2415.5,2415.4,0.7927]
[1726405604848,0.41388,2415.5,2415.4,0.391]
[1726405605351,0.4139,2415.4,2415.3,3.2078]
[1726405605651,0.7991,2415.4,2415.3,3.2078]
[1726405608547,0.41389,2415.5,2415.3,3.2078]
[1726405609352,0.4139,2415.4,2415.3,3.2078]
[1726405609544,0.41389,2415.5,2415.3,3.2078]
[1726405610047,0.41389,2415.5,2415.4,0.3818]
[1726405610551,0.41387,2415.6,2415.4,0.3818]
[1726405611543,0.71389658,2415.7,2415.3,3.2078]
[1726405612045,0.41389,2415.5,2415.3,3.2078]
[1726405613451,0.41388,2415.6,2415.3,3.2078]
[1726405613650,0.41387,2415.6,2415.3,3.2078]
[1726405615355,0.41388,2415.5,2415.3,3.2078]
[1726405616355,0.4139,2415.4,2415.3,3.2078]
[1726405616550,0.4139,2415.5,2415.3,3.2078]
[1726405619555,0.4139,2415.5,2415.2,0.7969]
[1726405621352,0.4139,2415.5,2415.2,4.0047]
[1726405621960,0.4139,2415.5,2415.2,5.08117993]
[1726405621961,0.41388,2415.5,2415.2,5.08117993]
[1726405624962,0.41388,2415.5,2415.2,4.0047]
[1726405625157,0.41388,2415.5,2415.2,5.08117993]
[1726405625756,0.41388,2415.5,2415.2,4.0047]
[1726405626260,0.41392,2415.3,2415.2,4.0047]
[1726405626560,0.41392,2415.3,2415.2,3.6114]
[1726405627156,0.80682,2415.3,2415.2,3.6114]
[1726405628558,1.1295922,2415.3,2415.2,3.6114]
[1726405628759,1.1295922,2415.3,2415.2,0.4036]
[1726405629959,1.1295922,2415.3,2414.9,1.07647993]
[1726405630164,0.7156722,2415.3,2414.9,1.47067993]
[1726405630461,0.41396,2415.1,2414.9,0.3942]
[1726405630859,0.41396,2415.1,2414.9,1.47067993]
[1726405631455,0.41394,2415.2,2414.9,1.47067993]
[1726405632862,1.1296022,2415.3,2415.0,1.07647993]
[1726405633070,1.1296022,2415.3,2414.9,1.47067993]
[1726405633360,1.1296022,2415.3,2415.0,1.07647993]
[1726405633560,0.7156722,2415.3,2415.0,1.07647993]
[1726405634063,1.1295922,2415.3,2415.0,1.07647993]
[1726405636957,0.41394,2415.2,2415.0,1.07647993]
[1726405637160,0.41394,2415.2,2414.9,1.47067993]
[1726405637161,1.22205,2415.2,2414.9,1.47067993]
[1726405637362,0.81495,2415.2,2414.9,1.47067993]
[1726405637759,0.41395,2415.2,2414.9,1.47067993]
[1726405640166,0.41395,2415.1,2414.9,1.47067993]
[1726405640375,0.41395,2415.1,2414.9,0.3942]
[1726405640663,0.41395,2415.1,2414.9,1.47067993]
[1726405640874,0.41395,2415.1,2414.9,0.3942]
[1726405641062,0.41395,2415.1,2414.9,1.47067993]
[1726405641264,0.41395,2415.2,2414.9,1.47067993]
[1726405641770,0.41395,2415.2,2414.9,0.3942]
[1726405641972,0.41395,2415.2,2414.9,1.47067993]
[1726405642175,0.41395,2415.2,2414.9,0.3942]
[1726405644464,0.41399,2414.9,2414.7,1.07647993]
[1726405644661,0.80581,2414.8,2414.6,1.48587993]
[1726405644863,0.3918,2414.8,2414.6,0.4094]
[1726405645067,0.80581,2414.8,2414.6,0.4094]
[1726405646270,0.41402,2414.7,2414.6,0.4094]